bitfinex/quotes_SOLUSD_20260224
["timestamp","ask_amount","ask_price","bid_price","bid_amount"]
[1771906984490,12.98246069,77.027,76.991,1.06849271]
[1771906984996,11.58767815,77.02,76.991,1.06849271]
[1771906985177,1.04543466,77.028,76.991,1.06849271]
[1771906985377,11.58767815,77.02,76.991,1.06849271]
[1771906985578,11.58767815,77.02,76.985,1.06849271]
[1771906985896,12.98267457,77.026,76.985,1.06849271]
[1771906986098,11.58767815,77.02,76.985,1.06849271]
[1771906986479,12.98267457,77.026,76.985,1.06849271]
[1771906986680,11.58767815,77.02,76.985,1.06849271]
[1771906987082,11.58767815,77.01,76.985,1.06849271]
[1771906987287,11.58767815,77.02,76.991,1.06849271]
[1771906987797,12.98380918,77.019,76.987,12.9891643]
[1771906987999,11.58767815,77.0,76.982,1.06849271]
[1771906988388,11.58767815,77.0,76.964,12.99308767]
[1771906988591,12.60304055,76.99,76.964,12.99308767]
[1771906988986,11.58767815,76.99,76.964,12.99308767]
[1771906989188,11.58767815,76.99,76.954,1.06849271]
[1771906989189,11.58767815,76.97,76.95,0.2]
[1771906989384,11.58767815,76.96,76.95,0.2]
[1771906989587,1.00559098,76.989,76.951,14.1590368]
[1771906989798,12.98897124,76.989,76.954,1.16375409]
[1771906990301,11.58767815,76.98,76.954,1.16375409]
[1771906990503,12.98897124,76.989,76.95,0.2]
[1771906990504,11.58767815,76.97,76.95,0.2]
[1771906990702,11.58767815,76.98,76.952,1.16375409]
[1771906991009,11.58767815,76.98,76.95,0.2]
[1771906991010,11.58767815,76.97,76.95,0.2]
[1771906991304,11.58767815,76.96,76.95,0.2]
[1771906991812,11.58767815,76.97,76.95,0.2]
[1771906992107,11.58767815,76.96,76.95,0.2]
[1771906992695,3.69383402,76.995,76.951,1.16375409]
[1771906992888,12.98802504,76.994,76.961,1.16375409]
[1771906993087,11.58767815,76.99,76.961,1.16375409]
[1771906993284,11.58767815,76.98,76.952,1.16375409]
[1771906994621,11.58767815,77.0,76.961,1.16375409]
[1771906994908,11.58767815,76.99,76.961,1.16375409]
[1771906996106,11.58767815,76.98,76.953,12.99494496]
[1771906996406,11.58767815,76.97,76.952,12.99511383]
[1771906997790,11.58767815,76.97,76.951,1.16375409]
[1771906998108,11.58767815,76.96,76.941,1.16375409]
[1771906998810,11.58767815,76.96,76.943,1.16375409]
[1771906999708,11.58767815,76.98,76.943,1.16375409]
[1771907000210,51.91501556,77.049,76.944,0.28432314]
[1771907000511,11.58767815,77.01,76.963,1.16375409]
[1771907001010,11.58767815,77.01,76.965,1.16375409]
[1771907001217,3.69383402,77.035,76.965,1.16375409]
[1771907001218,11.58767815,77.0,76.965,1.16375409]
[1771907001393,11.58767815,76.99,76.965,1.16375409]
[1771907001906,11.58767815,76.98,76.965,1.16375409]
[1771907002491,11.58767815,76.98,76.931,0.28432314]
[1771907002712,11.58767815,76.97,76.931,0.28432314]
[1771907002908,11.58767815,76.97,76.921,45.50122852]
[1771907002909,11.58767815,76.95,76.921,45.50122852]
[1771907003117,11.58767815,76.93,76.89,11.58767815]
[1771907003409,11.58767815,76.95,76.9,11.58767815]
[1771907003611,11.58767815,76.94,76.9,11.58767815]
[1771907003814,11.58767815,76.94,76.901,0.28432314]
[1771907003991,0.94404556,76.953,76.873,5.36086188]
[1771907004197,0.94404556,76.953,76.871,266.68054269]
[1771907004198,11.58767815,76.94,76.9,11.58767815]
[1771907004403,11.58767815,76.94,76.902,1.05767026]
[1771907004618,11.58767815,76.95,76.902,1.05767026]
[1771907004799,11.58767815,76.94,76.902,1.05767026]
[1771907005136,11.58767815,76.94,76.883,5.36086188]
[1771907005137,11.58767815,76.94,76.904,1.05767026]
[1771907005309,11.58767815,76.95,76.912,1.05767026]
[1771907005507,11.58767815,76.96,76.912,1.05767026]
[1771907006011,11.58767815,76.95,76.912,1.05767026]
[1771907006904,11.58767815,76.96,76.912,1.05767026]
[1771907007111,11.58767815,76.96,76.923,1.05767026]
[1771907007513,51.94481659,77.005,76.922,45.500637]
[1771907007514,51.92454355,77.035,76.95,11.58767815]
[1771907007813,11.58767815,76.99,76.953,1.05767026]
[1771907009401,11.58767815,76.97,76.936,1.05767026]
[1771907009600,11.58767815,76.98,76.937,1.05767026]
[1771907010102,11.58767815,76.97,76.937,1.05767026]
[1771907011019,11.58767815,76.96,76.937,1.05767026]
[1771907011514,11.58767815,76.95,76.927,33.55584373]
[1771907011700,11.58767815,76.95,76.927,1.05767026]
[1771907013721,11.58767815,76.95,76.928,12.99916805]
[1771907014621,11.58767815,76.95,76.928,46.55475844]
[1771907014820,0.89413228,76.961,76.928,46.55475844]
[1771907015018,11.58767815,76.96,76.928,46.55475844]
[1771907015217,11.58767815,76.94,76.928,12.99916805]
[1771907015422,11.58767815,76.94,76.923,1.05767026]
[1771907015609,11.58767815,76.95,76.923,1.05767026]
[1771907016412,11.58767815,76.95,76.91,11.58767815]
[1771907016413,11.58767815,76.95,76.925,1.05767026]
[1771907017506,12.99504854,76.953,76.925,1.05767026]
[1771907017821,11.58767815,76.95,76.924,45.499454]
[1771907018003,11.58767815,76.95,76.924,1.05767026]
[1771907018210,11.58767815,76.96,76.924,1.05767026]
[1771907018410,11.58767815,76.96,76.926,1.05767026]
[1771907019015,11.58767815,77.01,76.951,1.05767026]
[1771907019207,0.83475768,77.019,76.971,1.05767026]
[1771907019403,12.98299316,77.024,76.937,3.69383402]
[1771907019404,12.42243583,77.0,76.961,1.05767026]
[1771907019904,11.58767815,76.99,76.961,1.05767026]
[1771907020524,0.8232888,77.022,76.963,1.05767026]
[1771907020721,11.58767815,77.0,76.963,1.05767026]
[1771907021824,11.58767815,76.99,76.963,1.05767026]
[1771907022521,11.58767815,76.99,76.964,12.99308767]
[1771907022921,12.98886853,76.989,76.954,12.9947761]
[1771907023122,64.92311663,77.015,76.954,12.9947761]
[1771907023123,0.28432314,77.024,76.971,1.05767026]
[1771907023430,0.78966649,77.009,76.971,1.05767026]
[1771907024633,12.36639367,77.02,76.981,1.05767026]
[1771907024834,12.98380918,77.019,76.981,1.05767026]
[1771907025811,12.36639367,77.02,76.981,1.05767026]
[1771907026013,12.98380918,77.019,76.981,1.05767026]
[1771907026520,76.48139756,77.05,76.99,11.58767815]
[1771907026521,0.75718949,77.028,76.99,11.58767815]
[1771907026730,12.98246069,77.027,76.991,14.04620138]
[1771907027031,3.69383402,77.047,76.991,14.04620138]
[1771907027032,0.74661155,77.039,77.001,1.05767026]
[1771907027233,11.58767815,77.03,77.001,1.05767026]
[1771907027436,0.74661155,77.048,77.001,1.05767026]
[1771907027655,0.74661155,77.039,77.001,1.05767026]
[1771907027840,0.73615511,77.029,76.992,1.05767026]
[1771907028017,11.58767815,77.02,76.991,12.98853112]
[1771907028733,0.73615511,77.029,76.983,0.86240909]
[1771907029038,0.73615511,77.029,76.992,0.86240909]
[1771907029335,13.6978933,77.028,76.992,0.86240909]
[1771907029518,11.58767815,77.02,76.992,0.86240909]
[1771907029837,0.71560115,77.027,76.992,0.86240909]
[1771907030135,0.28432314,77.052,76.992,0.86240909]
[1771907030438,13.6792032,77.079,77.041,0.86240909]
[1771907030812,13.6792032,77.079,77.042,12.97993302]
[1771907031425,13.6792032,77.079,77.042,13.84234211]
[1771907031639,0.69551665,77.069,77.032,0.86240909]
[1771907032516,0.68564708,77.059,77.024,12.98296634]
[1771907032733,11.58767815,77.05,77.024,12.98296634]
[1771907032944,11.58767815,77.04,77.013,0.86240909]
[1771907033434,12.97875378,77.049,77.013,0.86240909]
[1771907035039,12.97875378,77.049,76.978,51.96270003]
[1771907035040,12.97796758,77.054,77.02,11.58767815]
[1771907035252,0.65671336,77.049,77.011,0.86240909]
[1771907036020,11.58767815,77.04,77.011,0.86240909]
[1771907036535,11.58767815,77.04,76.996,45.45690685]
[1771907036536,0.64728949,77.029,76.996,12.98768767]
[1771907036729,11.58767815,77.04,77.001,0.86240909]
[1771907037040,11.58767815,77.04,76.996,45.45690685]
[1771907037041,11.58767815,77.03,77.003,0.86240909]
[1771907038437,11.58767815,77.03,76.993,0.86240909]
[1771907038642,46.06950852,77.039,76.951,0.86240909]
[1771907038643,11.58767815,77.0,76.951,0.86240909]
[1771907038825,11.58767815,77.01,76.971,0.86240909]
[1771907039133,11.58767815,77.02,76.981,0.86240909]
[1771907039342,12.98380918,77.019,76.981,0.86240909]
[1771907039541,11.58767815,77.01,76.981,0.86240909]
[1771907039740,11.58767815,77.0,76.964,0.86240909]
[1771907040240,11.58767815,76.99,76.964,0.86240909]
[1771907040445,11.58767815,77.0,76.964,0.86240909]
[1771907040640,11.58767815,77.0,76.927,55.69089104]
[1771907040641,11.58767815,76.99,76.953,0.86240909]
[1771907041140,0.60176911,76.969,76.932,0.86240909]
[1771907041323,11.58767815,76.96,76.932,0.86240909]
[1771907042324,11.58767815,76.96,76.931,12.99866113]
[1771907042921,12.99393183,76.959,76.924,0.86240909]
[1771907043338,11.60326313,76.95,76.924,0.86240909]
[1771907044039,11.60326313,76.96,76.924,0.86240909]
[1771907044543,11.60326313,76.97,76.924,0.86240909]
[1771907044738,11.60326313,76.97,76.923,45.5000455]
[1771907044739,11.60326313,76.97,76.941,0.86240909]
[1771907045241,11.60326313,76.97,76.943,0.86240909]
[1771907045740,12.99224363,76.969,76.933,12.99824497]
[1771907045926,0.55880359,76.969,76.934,0.86240909]
[1771907046129,11.60326313,76.98,76.934,0.86240909]
[1771907046343,12.99055586,76.979,76.934,0.86240909]
[1771907046726,12.98886853,76.989,76.941,0.86240909]
[1771907047138,11.60326313,77.0,76.951,0.86240909]
[1771907047331,12.98718165,76.999,76.951,0.86240909]
[1771907047534,11.60326313,76.98,76.951,0.86240909]
[1771907047948,0.54230035,76.979,76.942,13.85921187]
[1771907048126,11.60326313,76.97,76.942,13.85921187]
[1771907048322,11.60326313,76.98,76.943,0.86240909]
[1771907048831,0.54230035,76.989,76.943,0.86240909]
[1771907049031,12.99055586,76.979,76.945,0.86240909]
[1771907049628,11.60326313,76.97,76.945,0.86240909]
[1771907049838,0.53419063,76.978,76.945,0.86240909]
[1771907050341,11.60326313,76.97,76.945,0.86240909]
[1771907050538,11.60326313,76.98,76.945,0.86240909]
[1771907051047,11.60326313,76.98,76.947,0.86240909]
[1771907053043,12.98937469,76.986,76.948,12.99578936]
[1771907053363,12.98768767,76.996,76.951,0.86240909]
[1771907053532,11.60326313,76.99,76.951,0.86240909]
[1771907053735,12.09828113,76.99,76.951,0.86240909]
[1771907054849,11.60326313,76.98,76.951,0.86240909]
[1771907055230,11.60326313,76.98,76.952,12.99511383]
[1771907055429,11.60326313,76.98,76.952,13.85752292]
[1771907055624,12.99055586,76.979,76.945,12.99619956]
[1771907055855,13.47800722,76.979,76.945,13.85860865]
[1771907056055,13.47800722,76.979,76.946,0.86240909]
[1771907056754,0.47997162,76.978,76.946,0.86240909]
[1771907057052,0.47997162,76.978,76.946,13.85853624]
[1771907057631,11.60326313,76.97,76.932,0.86240909]
[1771907058251,0.4725778,76.973,76.932,0.86240909]
[1771907058430,11.60326313,76.97,76.932,0.86240909]
[1771907058747,0.45804396,76.969,76.932,0.86240909]
[1771907059145,0.450902,76.959,76.923,0.75753559]
[1771907059649,11.60326313,76.95,76.924,12.999844]
[1771907059846,11.60326313,76.94,76.913,0.75753559]
[1771907060856,12.99410067,76.958,76.913,0.75753559]
[1771907061238,11.60326313,76.95,76.913,0.75753559]
[1771907061633,11.60326313,76.95,76.915,0.75753559]
[1771907062531,24.59887669,76.95,76.915,0.75753559]
[1771907063746,0.43686324,76.958,76.917,0.74615368]
[1771907064341,11.60326313,76.95,76.917,0.74615368]
[1771907065453,12.99426952,76.957,76.917,0.74615368]
[1771907066460,12.99426952,76.957,76.919,0.74615368]
[1771907066964,103.9,76.986,76.918,13.00085805]
[1771907066965,11.99346813,76.99,76.941,0.74615368]
[1771907067259,0.390205,76.989,76.941,0.74615368]
[1771907067553,11.60326313,76.98,76.941,0.74615368]
[1771907067734,0.390205,76.989,76.941,0.74615368]
[1771907068142,11.60326313,76.98,76.941,0.74615368]
[1771907068358,0.390205,76.989,76.941,0.74615368]
[1771907068661,11.60326313,76.98,76.943,0.74615368]
[1771907070957,11.60326313,76.98,76.945,0.74615368]
[1771907071559,24.59369515,76.98,76.945,0.74615368]
[1771907073163,11.60326313,76.98,76.947,0.74615368]
[1771907073363,11.60326313,76.98,76.946,45.48644503]
[1771907073364,11.60326313,77.0,76.961,0.74615368]
[1771907074563,11.60326313,77.0,76.963,0.74615368]
[1771907076847,11.60326313,77.0,76.964,12.99308767]
[1771907077057,24.59032195,77.0,76.965,0.74615368]
[1771907078469,11.60326313,76.98,76.955,0.74615368]
[1771907079062,12.98965996,76.985,76.957,0.74615368]
[1771907080265,11.60326313,76.98,76.957,0.74615368]
[1771907080442,11.60326313,76.98,76.941,0.74615368]
[1771907080765,11.60326313,76.97,76.941,0.74615368]
[1771907080948,12.98965996,76.985,76.922,0.74615368]
[1771907080949,0.30748071,76.959,76.922,0.74615368]
[1771907081149,11.60326313,76.95,76.923,13.000013]
[1771907081862,11.60326313,76.95,76.923,13.74616668]
[1771907082545,11.60326313,76.96,76.924,0.74615368]
[1771907083059,12.99393183,76.959,76.924,0.74615368]
[1771907083362,12.99393183,76.959,76.9,52.21537456]
[1771907083363,0.2967177,76.949,76.915,13.74751882]
[1771907083564,0.2967177,76.949,76.916,0.74615368]
[1771907083938,11.60326313,76.94,76.916,0.74615368]
[1771907086259,11.88429547,76.93,76.901,13.00373207]
[1771907086569,12.99730955,76.939,76.9,0.2]
[1771907086570,11.60326313,76.91,76.9,1e-08]
[1771907086769,11.60326313,76.93,76.902,0.74615368]
[1771907087657,45.49058344,76.939,76.9,1e-08]
[1771907087658,11.60326313,76.92,76.9,1e-08]
[1771907087961,11.60326313,76.91,76.9,1e-08]
[1771907088352,24.60553698,76.91,76.9,1e-08]
[1771907088668,0.26588128,76.92,76.9,0.70159445]
[1771907088669,11.60326313,76.92,76.9,0.70159445]
[1771907089850,11.60326313,76.91,76.9,1e-08]
[1771907090861,13.00237943,76.909,76.9,1e-08]
[1771907091460,45.75957433,76.909,76.9,1e-08]
[1771907091660,13.00151559,76.915,76.9,1e-08]
[1771907091863,11.60326313,76.91,76.9,1e-08]
[1771907092176,12.99954086,76.926,76.9,1e-08]
[1771907092674,12.99764742,76.937,76.9,1e-08]
[1771907093166,12.9974322,76.939,76.901,0.70159444]
[1771907094270,0.23710988,76.938,76.901,0.70159444]
[1771907094572,12.9974322,76.939,76.903,0.70159444]
[1771907095262,11.60326313,76.93,76.903,0.70159444]
[1771907095978,11.60326313,76.93,76.903,0.33136598]
[1771907096275,12.20144573,76.93,76.903,0.33136598]
[1771907096646,12.99899907,76.929,76.903,0.33136598]
[1771907097952,0.58923597,76.928,76.9,1e-08]
[1771907098555,11.60326313,76.93,76.9,1e-08]
[1771907098866,0.58923597,76.929,76.9,1e-08]
[1771907100547,12.99916805,76.928,76.9,1e-08]
[1771907100868,11.60326313,76.93,76.9,1e-08]
[1771907100869,24.60214247,76.93,76.9,1e-08]
[1771907101471,0.5761977,76.929,76.9,1e-08]
[1771907102350,13.00508498,77.045,76.9,1e-08]
[1771907102351,0.57195107,76.937,76.9,11.60326314]
[1771907102552,11.60326313,76.93,76.901,0.70159444]
[1771907103270,0.56775321,76.909,76.883,0.70159444]
[1771907103576,11.60326313,76.9,76.872,13.00854502]
[1771907103763,0.56775321,76.901,76.872,13.71013946]
[1771907104153,11.60326313,76.93,76.881,0.70159444]
[1771907104357,11.60326313,76.93,76.89,11.60326313]
[1771907104557,0.56360357,76.948,76.901,0.70159444]
[1771907104880,12.16276472,76.94,76.903,0.70159444]
[1771907105255,0.55950159,76.939,76.903,0.70159444]
[1771907107068,12.99747848,76.938,76.905,0.70159444]
[1771907107266,13.54604567,76.955,76.911,0.70159444]
[1771907108581,12.99398567,76.959,76.921,0.70159444]
[1771907109257,12.99398567,76.959,76.923,0.70159444]
[1771907111668,0.53586041,76.958,76.923,0.70159444]
[1771907111980,0.53586041,76.958,76.925,0.70159444]
[1771907112476,12.99398567,76.959,76.92,13.00044254]
[1771907112477,0.53207709,76.949,76.92,13.00044254]
[1771907112659,0.53207709,76.949,76.918,0.70159444]
[1771907112660,11.60927144,76.94,76.918,0.70159444]
[1771907113179,0.52833722,76.94,76.912,0.70159444]
[1771907113356,0.52833722,76.948,76.912,0.70159444]
[1771907113783,3.69383402,76.971,76.913,13.00170322]
[1771907113784,11.60927144,76.94,76.913,13.00170322]
[1771907113964,12.99595825,76.947,76.914,0.70159444]
[1771907114281,13.52059856,76.947,76.914,0.70159444]
[1771907114573,0.52464031,76.946,76.914,0.70159444]
[1771907115482,12.99595825,76.947,76.914,0.70159444]
[1771907115684,0.52098587,76.946,76.914,0.70159444]
[1771907115855,0.52098587,76.946,76.916,0.70159444]
[1771907116279,12.99595825,76.947,76.916,0.70159444]
[1771907116680,0.51737339,76.946,76.916,0.70159444]
[1771907119170,0.51737339,76.946,76.917,13.00102708]
[1771907119486,12.99629605,76.945,76.918,0.59729049]
[1771907120483,12.99476965,76.955,76.921,0.59729049]
[1771907121076,12.99403915,76.959,76.921,0.59729049]
[1771907121467,12.99308552,76.965,76.923,0.59729049]
[1771907121781,12.9913814,76.975,76.941,0.59729049]
[1771907122169,5.19925193,76.97,76.941,0.59729049]
[1771907122481,12.9913814,76.975,76.941,0.59729049]
[1771907122786,5.19925193,76.98,76.941,0.59729049]
[1771907123485,12.99055586,76.979,76.943,0.61377875]
[1771907124095,5.19925193,76.97,76.943,0.61377875]
[1771907124585,0.48345391,76.978,76.943,0.61377875]
[1771907125991,0.47712769,76.989,76.957,0.61377875]
[1771907126287,0.64138814,76.979,76.944,45.48762736]
[1771907126486,0.64138814,76.969,76.94,12.99705728]
[1771907126891,0.64138814,76.979,76.94,18.19630921]
[1771907127481,5.19925193,76.97,76.94,12.99705728]
[1771907127683,5.84064007,76.97,76.94,12.99705728]
[1771907127879,0.64138814,76.959,76.927,32.49819274]
[1771907128270,0.64138814,76.959,76.928,0.61377875]
[1771907128783,0.64138814,76.959,76.928,13.6129468]
[1771907130292,0.64138814,76.949,76.924,12.99982241]
[1771907130872,0.64138814,76.939,76.916,0.2]
[1771907131085,0.64138814,76.939,76.905,13.61683446]
[1771907131279,0.64138814,76.939,76.906,0.61377875]
[1771907131814,0.64138814,76.965,76.931,0.61377875]
[1771907132492,0.64138814,76.964,76.933,0.61377875]
[1771907133892,0.64138814,76.964,76.932,12.99849217]
[1771907133893,0.64138814,76.992,76.951,0.61377875]
[1771907134123,0.64138814,76.992,76.96,11.60281592]
[1771907134395,11.60281592,76.98,76.941,0.61377875]
[1771907134579,0.64138814,76.979,76.942,12.99680278]
[1771907134774,0.64138814,76.979,76.943,0.61377875]
[1771907137494,0.64138814,76.979,76.944,13.61024371]
[1771907137678,0.64138814,76.979,76.945,0.61377875]
[1771907138078,0.64138814,76.977,76.945,0.61377875]
[1771907140483,0.64138814,76.969,76.945,0.61377875]
[1771907140683,0.64138814,76.969,76.945,13.60998156]
[1771907141082,0.64138814,76.969,76.941,12.99695731]
[1771907143104,0.64138814,76.969,76.942,0.61377875]
[1771907143508,0.64138814,76.978,76.942,0.61377875]
[1771907143710,0.64138814,76.995,76.951,0.61377875]
[1771907144589,13.62973703,76.993,76.951,0.61377875]
[1771907145105,0.64138814,76.992,76.951,0.61377875]
[1771907145298,0.64138814,76.989,76.953,0.61377875]
[1771907148083,0.57221756,76.987,76.955,0.57155254]
[1771907148586,0.57221756,76.997,76.961,0.57155254]
[1771907149393,18.749705,77.01,76.971,0.57155254]
[1771907149596,3.69383402,77.031,76.971,0.57155254]
[1771907149597,0.67221756,77.02,76.971,0.57155254]
[1771907149798,0.67221756,77.02,76.991,0.57155254]
[1771907150099,0.57221756,77.018,76.991,0.57155254]
[1771907150403,0.57221756,77.018,76.992,12.98836242]
[1771907150597,0.57221756,77.018,76.983,0.57155254]
[1771907150787,0.57221756,77.016,76.983,0.57155254]
[1771907151905,11.58453102,77.01,76.981,12.99021836]
[1771907152111,0.57221756,77.009,76.981,12.99021836]
[1771907152307,0.57221756,77.009,76.981,0.57155254]
[1771907152611,0.57221756,77.016,76.981,0.57155254]
[1771907153406,11.58453102,77.01,76.981,0.57155254]
[1771907153609,0.57221756,77.009,76.972,0.57155254]
[1771907154704,0.57221756,77.007,76.974,0.57155254]
[1771907155308,12.98505797,77.012,76.973,45.47048965]
[1771907155309,12.98505797,77.012,76.981,0.57155254]
[1771907155688,13.55727553,77.012,76.981,0.57155254]
[1771907155888,0.57221756,77.011,76.981,0.57155254]
[1771907156503,0.57221756,77.018,76.981,0.57155254]
[1771907156684,0.57221756,77.018,76.983,0.57155254]
[1771907157610,0.57221756,77.016,76.983,0.57155254]
[1771907157907,0.1,77.02,76.991,0.57155254]
[1771907158093,12.98380918,77.019,76.991,0.57155254]
[1771907158610,13.55602674,77.019,76.991,0.57155254]
[1771907159798,0.1,77.02,76.993,0.57155254]
[1771907160004,13.08378945,77.02,76.993,0.57155254]
[1771907160309,0.1,77.02,76.993,0.57155254]
[1771907160698,11.58453102,77.0,76.965,0.57155254]
[1771907161005,0.57221756,76.999,76.965,0.57155254]
[1771907161507,0.57221756,76.989,76.964,12.99308767]
[1771907161811,11.58453102,76.97,76.945,0.57155254]
[1771907162008,0.57221756,76.989,76.945,0.57155254]
[1771907162194,0.57221756,76.988,76.945,0.57155254]
[1771907162396,11.58453102,76.98,76.945,0.57155254]
[1771907162590,0.57221756,76.992,76.947,0.57155254]
[1771907162791,0.57221756,77.009,76.971,0.57155254]
[1771907164806,12.98380918,77.019,76.973,0.57155254]
[1771907164807,11.58453102,77.0,76.973,0.57155254]
[1771907165014,0.57221756,76.999,76.973,0.57155254]
[1771907165199,0.57221756,77.011,76.973,0.57155254]
[1771907165401,11.58791093,77.01,76.973,0.57155254]
[1771907165720,12.16012849,77.01,76.973,0.57155254]
[1771907166097,11.58791093,77.01,76.973,0.57155254]
[1771907166299,0.57221756,77.009,76.973,0.57155254]
[1771907166816,0.57221756,77.009,76.975,0.57155254]
[1771907169512,0.57221756,77.009,76.976,45.46871751]
[1771907169702,0.57221756,77.009,76.977,0.57155254]
[1771907170022,0.57221756,77.009,76.976,45.46871751]
[1771907170023,0.57221756,77.019,76.981,0.57155254]
[1771907170401,0.57221756,77.019,76.961,51.97405025]
[1771907170402,0.57221756,76.999,76.967,12.99258123]
[1771907170806,0.57221756,76.999,76.967,45.47403432]
[1771907171222,0.57221756,76.989,76.959,12.99393183]
[1771907171414,45.44333215,77.019,76.948,32.48930598]
[1771907171415,0.57221756,76.979,76.948,32.48930598]
[1771907171624,0.57221756,76.979,76.931,12.99866113]
[1771907171925,0.57221756,76.969,76.931,45.49531397]
[1771907172317,0.57221756,76.969,76.932,0.57155254]
[1771907173712,0.57221756,76.969,76.934,0.57155254]
[1771907175322,0.57221756,76.969,76.936,0.57155254]
[1771907176227,12.99239516,76.969,76.935,12.99798531]
[1771907176419,12.99239516,76.969,76.9,52.01529797]
[1771907176420,0.57221756,76.949,76.916,0.57155254]
[1771907176725,0.57221756,76.949,76.89,11.58791093]
[1771907176726,0.57221756,76.939,76.907,13.00257564]
[1771907176909,0.57221756,76.939,76.907,13.57412818]
[1771907177310,0.28432314,76.967,76.907,13.57412818]
[1771907177311,11.58791093,76.93,76.907,13.57412818]
[1771907177507,12.16012849,76.93,76.907,13.57412818]
[1771907177712,0.57221756,76.922,76.896,0.57155254]
[1771907177926,11.58791093,76.95,76.901,0.57155254]
[1771907178532,0.28432314,76.97,76.903,0.51558928]
[1771907178735,11.58791093,76.95,76.909,0.51558928]
[1771907179530,11.58791093,76.95,76.911,0.51558928]
[1771907180230,12.13273803,76.95,76.911,0.51558928]
[1771907180608,0.28432314,76.97,76.893,3.69383402]
[1771907180921,0.5448271,76.899,76.87,0.2]
[1771907181127,11.58791093,76.9,76.85,0.2]
[1771907181128,0.5448271,76.879,76.85,0.2]
[1771907181336,11.58791093,76.87,76.851,13.01219242]
[1771907181631,0.5448271,76.879,76.851,13.01219242]
[1771907181935,11.58791093,76.89,76.852,0.51558928]
[1771907182118,12.08361143,76.89,76.852,0.51558928]
[1771907182515,11.58791093,76.9,76.852,0.51558928]
[1771907182833,13.00407027,76.899,76.858,0.49064639]
[1771907183331,11.58791093,76.89,76.858,0.49064639]
[1771907183529,13.00407027,76.899,76.858,0.49064639]
[1771907183838,13.00407027,76.899,76.86,0.49064639]
[1771907184729,11.58791093,76.9,76.86,0.49064639]
[1771907185036,24.59197264,76.9,76.86,0.49064639]
[1771907185263,0.4957005,76.899,76.86,0.49064639]
[1771907185536,0.4957005,76.899,76.84,0.2]
[1771907185537,0.28432314,76.866,76.82,1e-08]
[1771907185832,0.28432314,76.866,76.75,63.70479632]
[1771907185833,11.58791093,76.81,76.8,6.79686177]
[1771907186012,266.70135949,76.865,76.801,0.54061013]
[1771907186013,45.53437844,76.865,76.801,0.54061013]
[1771907186216,11.58791093,76.84,76.801,0.54061013]
[1771907187744,11.58791093,76.84,76.811,0.54061013]
[1771907188515,11.58791093,76.83,76.811,0.54061013]
[1771907189145,11.58791093,76.83,76.791,0.54061013]
[1771907189518,11.58791093,76.84,76.791,0.54061013]
[1771907189738,11.58791093,76.84,76.801,0.54061013]
[1771907190257,11.58791093,76.85,76.811,0.54061013]
[1771907190747,11.58791093,76.85,76.506,94.58524045]
[1771907190748,3.69383402,76.859,76.791,0.54061013]
[1771907190960,104.08365378,76.862,76.723,58.58]
[1771907190961,11.58791093,76.8,76.76,11.58791093]
[1771907191160,11.58791093,76.8,76.759,0.28432314]
[1771907191322,0.4957005,76.814,76.77,11.58791093]
[1771907191638,0.4957005,76.814,76.745,5.36086188]
[1771907191639,11.58791093,76.8,76.761,0.28432314]
[1771907191935,11.58791093,76.8,76.762,13.02727912]
[1771907192150,45.56520379,76.813,76.75,11.58791093]
[1771907192323,11.58791093,76.8,76.75,11.58791093]
[1771907192941,11.58791093,76.8,76.751,0.49064639]
[1771907193131,11.58791093,76.8,76.761,0.49064639]
[1771907193438,0.4957005,76.812,76.76,11.58791093]
[1771907193439,11.58791093,76.81,76.769,0.49064639]
[1771907193635,11.58791093,76.81,76.772,13.02558224]
[1771907193828,13.01862965,76.813,76.773,0.49064639]
[1771907194028,13.01776951,76.819,76.781,0.49064639]
[1771907195338,13.01776951,76.819,76.772,13.02558224]
[1771907195339,11.58791093,76.84,76.791,0.49064639]
[1771907195528,11.58791093,76.83,76.791,0.49064639]
[1771907195730,13.01591846,76.829,76.791,0.49064639]
[1771907196034,13.01591846,76.829,76.792,13.02218981]
[1771907196241,13.01591846,76.829,76.793,0.49064639]
[1771907197240,13.01591846,76.829,76.738,13.03132105]
[1771907197241,0.14216157,76.798,76.738,13.03132105]
[1771907197445,11.58791093,76.78,76.753,0.49064639]
[1771907197745,13.02269856,76.789,76.753,0.49064639]
[1771907198043,45.57944496,76.789,76.753,0.49064639]
[1771907198232,11.58791093,76.78,76.753,0.49064639]
[1771907198435,13.02269856,76.789,76.753,0.49064639]
[1771907199147,11.58791093,76.79,76.754,0.49064639]
[1771907199350,13.02269856,76.789,76.754,0.49064639]
[1771907199842,45.57944496,76.789,76.754,0.49064639]
[1771907200043,11.58791093,76.78,76.754,0.49064639]
[1771907200545,13.02269856,76.789,76.754,0.49064639]
[1771907200739,11.58791093,76.78,76.754,0.49064639]
[1771907200935,13.02269856,76.789,76.754,0.49064639]
[1771907201929,11.58791093,76.8,76.763,0.49064639]
[1771907202635,11.58791093,76.79,76.763,0.49064639]
[1771907203057,12.08361143,76.77,76.734,0.49064639]
[1771907203262,11.58791093,76.76,76.734,0.49064639]
[1771907203428,11.58791093,76.77,76.734,0.49064639]